fUST/lending_fUST_20250808
["ID","MTS","AMOUNT","RATE_DAILY","PERIOD"]
[377861644,1754582403196,662.00677966,0.00021187,2]
[377861645,1754582411778,5000.0,0.00021481,2]
[377861646,1754582423445,160.77146043,0.00021,3]
[377861648,1754582429414,3452.23051609,0.00021481,2]
[377861649,1754582429443,1547.76948391,0.00021481,2]
[377861650,1754582447226,5000.0,0.00021481,2]
[377861651,1754582460646,151.0,0.00021481,2]
[377861652,1754582464923,5000.0,0.00021481,2]
[377861654,1754582511387,206.362225,0.00021004,2]
[377861655,1754582511739,456.12437987,0.00021005,2]
[377861656,1754582516132,201.388777,0.00020978,2]
[377861657,1754582520113,2437.35513422,0.000199,2]
[377861658,1754582520150,8253.24118524,0.000199,2]
[377861659,1754582539512,605.39467192,0.00020873,6]
[377861660,1754582539567,605.39467192,0.00021082,6]
[377861661,1754582539615,515.65488146,0.00021291,6]
[377861664,1754582597763,178.1014109,0.00020833,2]
[377861666,1754582690615,500.0,0.0003,120]
[377861667,1754582691225,1290.0620143,0.00021481,2]
[377861668,1754582692385,1032.04961144,0.00021481,2]
[377861669,1754582693524,825.63968915,0.00021481,2]
[377861670,1754582694694,660.51175132,0.00021481,2]
[377861671,1754582695814,528.40940105,0.00021481,2]
[377861672,1754582696741,422.72752084,0.00021481,2]
[377861673,1754582697793,82.81319046,0.00021481,2]
[377861674,1754582697824,255.36882622,0.00021481,2]
[377861676,1754582699006,270.54561334,0.00021481,2]
[377861678,1754582700013,216.43649067,0.00021481,2]
[377861679,1754582701019,173.14919254,0.00021481,2]
[377861680,1754582702077,151.0,0.00021481,2]
[377861681,1754582705151,441.3378531,0.00021187,2]
[377861682,1754582707917,1600.0,0.00021481,2]
[377861684,1754582724667,1311.0,0.0003,120]
[377861685,1754582725425,3067.0,0.00020845,2]
[377861746,1754582762646,151.0,0.00021481,2]
[377861755,1754582794171,207.973977,0.00020845,2]
[377861756,1754582813183,294.31085042,0.00021005,2]
[377861774,1754582898307,722.295023,0.00013699,2]
[377861775,1754582898538,722.295023,0.00020187,2]
[377861777,1754582927798,263.79058037,0.00020944,5]
[377861778,1754582930107,169.15192609,0.00020944,5]
[377861786,1754582947908,1000.0,0.00020845,2]
[377861787,1754582959296,666.0,0.00020845,2]
[377861794,1754583006694,294.2252354,0.00019381,2]
[377861800,1754583032571,-179.65122183,0.00021554,2]
[377861802,1754583032581,-1793.80585968,0.00021584,2]
[377861804,1754583032591,-4198.16581419,0.00021584,2]
[377861827,1754583038167,-1853.69999784,0.00021584,2]
[377861828,1754583038272,-1116.18240323,0.00021584,2]
[377861830,1754583038282,-1200.0,0.00021653,2]
[377861831,1754583038295,-1200.0,0.00021654,2]
[377861832,1754583038310,-300.0,0.00021654,2]
[377861833,1754583038321,-10690.5963194,0.00021655,2]
[377861834,1754583038331,-166.2072988,0.00021697,2]
[377861835,1754583038339,-328.33285704,0.00021816,2]
[377861836,1754583038350,-202.95959541,0.00021816,2]
[377861837,1754583038360,-1238.47358492,0.00021817,2]
[377861838,1754583038369,-290.71175663,0.00021906,2]
[377861839,1754583038379,-1428.61,0.00021907,3]
[377861840,1754583038388,-714.31,0.00021907,3]
[377861841,1754583038398,-357.15,0.00021907,3]
[377861842,1754583038408,-178.58,0.00021907,3]
[377861843,1754583038418,-535.75,0.00021907,3]
[377861844,1754583038427,-462.1576888,0.00021917,2]
[377861845,1754583038437,-460.0,0.00021917,2]
[377861846,1754583038446,-460.0,0.00021917,2]
[377861847,1754583038456,-460.0,0.00021917,2]
[377861848,1754583038465,-460.0,0.00021917,2]
[377861849,1754583038475,-460.0,0.00021917,2]
[377861850,1754583038485,-460.0,0.00021917,2]
[377861851,1754583038495,-426.07888201,0.00021917,2]
[377861852,1754583038505,-462.50762814,0.00021917,2]
[377861853,1754583038514,-460.0,0.00021917,2]
[377861854,1754583038524,-462.26820745,0.00021917,2]
[377861855,1754583038534,-460.0,0.00021917,2]
[377861856,1754583038544,-460.0,0.00021917,2]
[377861857,1754583038554,-596.47,0.00021917,2]
[377861858,1754583038564,-468.86963361,0.00021917,2]
[377861859,1754583038574,-253.32046142,0.00021917,2]
[377861860,1754583038584,-462.72520324,0.00021917,2]
[377861861,1754583038594,-460.81621875,0.00021917,2]
[377861862,1754583038604,-460.0,0.00021917,2]
[377861863,1754583038614,-460.0,0.00021917,2]
[377861864,1754583038623,-460.0,0.00021917,2]
[377861865,1754583038633,-460.0,0.00021917,2]
[377861866,1754583038643,-460.0,0.00021917,2]
[377861867,1754583038653,-460.0,0.00021917,2]
[377861868,1754583038663,-571.04,0.00021917,2]
[377861869,1754583038673,-466.04621297,0.00021917,2]
[377861870,1754583038683,-460.0,0.00021917,2]
[377861871,1754583038693,-460.0,0.00021917,2]
[377861872,1754583038703,-542.79,0.00021917,2]
[377861873,1754583038712,-460.0,0.00021917,2]
[377861874,1754583038722,-460.0,0.00021917,2]
[377861875,1754583038732,-463.9701629,0.00021917,2]
[377861876,1754583038742,-460.0,0.00021917,2]
[377861877,1754583038751,-460.0,0.00021917,2]
[377861878,1754583038761,-460.0,0.00021917,2]
[377861879,1754583038771,-159.77561236,0.00021917,2]
[377861880,1754583038780,-460.0,0.00021917,2]
[377861881,1754583038789,-460.0,0.00021917,2]
[377861882,1754583038799,-471.49829482,0.00021917,2]
[377861883,1754583038809,-264.0560227,0.00021917,2]
[377861884,1754583038819,-460.0,0.00021917,2]
[377861885,1754583038828,-460.0,0.00021917,2]
[377861886,1754583038838,-462.74041699,0.00021917,2]
[377861887,1754583038848,-460.0,0.00021917,2]
[377861888,1754583038858,-460.0,0.00021917,2]
[377861889,1754583038868,-460.0,0.00021917,2]
[377861890,1754583038878,-460.0,0.00021917,2]
[377861891,1754583038888,-460.0,0.00021917,2]
[377861892,1754583038897,-615.59,0.00021917,2]
[377861893,1754583038907,-872.63,0.00021917,2]
[377861894,1754583038918,-460.0,0.00021917,2]
[377861895,1754583038928,-460.0,0.00021917,2]
[377861896,1754583038937,-460.0,0.00021917,2]
[377861897,1754583038947,-460.0,0.00021917,2]
[377861898,1754583038956,-460.0,0.00021917,2]
[377861899,1754583038966,-151.02283271,0.00021917,2]
[377861900,1754583038975,-460.0,0.00021917,2]
[377861901,1754583038985,-460.0,0.00021917,2]
[377861902,1754583038995,-460.0,0.00021917,2]
[377861903,1754583039004,-460.0,0.00021917,2]
[377861904,1754583039015,-460.0,0.00021917,2]
[377861905,1754583039025,-460.0,0.00021917,2]
[377861906,1754583039035,-460.0,0.00021917,2]
[377861907,1754583039044,-460.0,0.00021917,2]
[377861908,1754583039055,-460.0,0.00021917,2]
[377861909,1754583039064,-460.0,0.00021917,2]
[377861910,1754583039074,-500.0,0.00021917,2]
[377861911,1754583039083,-460.0,0.00021917,2]
[377861912,1754583039093,-460.0,0.00021917,2]
[377861913,1754583039102,-460.0,0.00021917,2]
[377861914,1754583039112,-199.7865977,0.00021917,2]
[377861915,1754583039122,-460.0,0.00021917,2]
[377861916,1754583039132,-460.0,0.00021917,2]
[377861917,1754583039144,-460.0,0.00021917,2]
[377861918,1754583039162,-460.0,0.00021917,2]
[377861919,1754583039177,-460.0,0.00021917,2]
[377861920,1754583039189,-837.54,0.00021917,2]
[377861921,1754583039199,-460.0,0.00021917,2]
[377861922,1754583039209,-460.0,0.00021917,2]
[377861923,1754583039219,-460.0,0.00021917,2]
[377861924,1754583039229,-460.0,0.00021917,2]
[377861925,1754583039239,-460.0,0.00021917,2]
[377861926,1754583039249,-461.91,0.00021917,2]
[377861927,1754583039259,-460.0,0.00021917,2]
[377861928,1754583039268,-460.0,0.00021917,2]
[377861929,1754583039278,-460.0,0.00021917,2]
[377861930,1754583039288,-460.0,0.00021917,2]
[377861931,1754583039298,-464.06603285,0.00021917,2]
[377861932,1754583039309,-460.0,0.00021917,2]
[377861933,1754583039318,-460.0,0.00021917,2]
[377861934,1754583039328,-460.0,0.00021917,2]
[377861935,1754583039338,-460.0,0.00021917,2]
[377861936,1754583039349,-460.0,0.00021917,2]
[377861937,1754583039358,-460.0,0.00021917,2]
[377861938,1754583039369,-460.0,0.00021917,2]
[377861939,1754583039384,-460.0,0.00021917,2]
[377861940,1754583039394,-460.0,0.00021917,2]
[377861941,1754583039405,-465.38212595,0.00021917,2]
[377861942,1754583039415,-460.0,0.00021917,2]
[377861943,1754583039430,-460.0,0.00021917,2]
[377861944,1754583039440,-460.0,0.00021917,2]
[377861945,1754583039450,-460.0,0.00021917,2]
[377861946,1754583039460,-460.0,0.00021917,2]
[377861947,1754583039470,-460.0,0.00021917,2]
[377861948,1754583039480,-460.0,0.00021917,2]
[377861949,1754583039490,-460.0,0.00021917,2]
[377861950,1754583039500,-460.97512777,0.00021917,2]
[377861952,1754583039510,-460.0,0.00021917,2]
[377861953,1754583039520,-460.0,0.00021917,2]
[377861955,1754583039530,-460.0,0.00021917,2]
[377861956,1754583039540,-460.0,0.00021917,2]
[377861957,1754583039550,-460.0,0.00021917,2]
[377861958,1754583039559,-460.0,0.00021917,2]
[377861959,1754583039569,-460.0,0.00021917,2]
[377861960,1754583039579,-460.0,0.00021917,2]
[377861961,1754583039589,-460.0,0.00021917,2]
[377861962,1754583039599,-460.99534196,0.00021917,2]
[377861963,1754583039609,-460.0,0.00021917,2]
[377861964,1754583039619,-460.0,0.00021917,2]
[377861965,1754583039628,-460.0,0.00021917,2]
[377861966,1754583039639,-460.0,0.00021917,2]
[377861967,1754583039649,-460.0,0.00021917,2]
[377861968,1754583039659,-460.0,0.00021917,2]
[377861969,1754583039671,-504.43,0.00021917,2]
[377861970,1754583039688,-460.0,0.00021917,2]
[377861971,1754583039698,-460.0,0.00021917,2]
[377861972,1754583039709,-460.0,0.00021917,2]
[377861973,1754583039718,-460.0,0.00021917,2]
[377861974,1754583039728,-460.0,0.00021917,2]
[377861975,1754583039738,-460.0,0.00021917,2]
[377861976,1754583039748,-460.0,0.00021917,2]
[377861977,1754583039758,-460.0,0.00021917,2]
[377861978,1754583039768,-460.0,0.00021917,2]
[377861979,1754583039778,-460.0,0.00021917,2]
[377861980,1754583039788,-460.0,0.00021917,2]
[377861981,1754583039798,-460.0,0.00021917,2]
[377861982,1754583039808,-240.48226475,0.00021917,2]
[377861983,1754583039818,-460.0,0.00021917,2]
[377861984,1754583039828,-460.0,0.00021917,2]
[377861985,1754583039838,-4304.38,0.00021917,2]
[377861986,1754583039848,-460.0,0.00021917,2]
[377861987,1754583039859,-460.0,0.00021917,2]
[377861988,1754583039869,-460.0,0.00021917,2]
[377861989,1754583039879,-460.0,0.00021917,2]
[377861990,1754583039889,-460.0,0.00021917,2]
[377861991,1754583039899,-460.0,0.00021917,2]
[377861992,1754583039909,-467.04436823,0.00021917,2]
[377861993,1754583039921,-463.40792167,0.00021917,2]
[377861994,1754583039931,-460.0,0.00021917,2]
[377861995,1754583039941,-460.0,0.00021917,2]
[377861996,1754583039950,-460.0,0.00021917,2]
[377861997,1754583039960,-460.0,0.00021917,2]
[377861998,1754583039969,-460.0,0.00021917,2]
[377861999,1754583039979,-460.0,0.00021917,2]
[377862001,1754583039988,-460.0,0.00021917,2]
[377862002,1754583039999,-460.0,0.00021917,2]
[377862003,1754583040011,-460.0,0.00021917,2]
[377862004,1754583040020,-463.0963047,0.00021917,2]
[377862005,1754583040030,-460.0,0.00021917,2]
[377862006,1754583040040,-460.0,0.00021917,2]
[377862007,1754583040050,-460.0,0.00021917,2]
[377862008,1754583040062,-460.0,0.00021917,2]
[377862009,1754583040072,-460.0,0.00021917,2]
[377862010,1754583040082,-460.0,0.00021917,2]
[377862011,1754583040091,-460.0,0.00021917,2]
[377862012,1754583040103,-460.0,0.00021917,2]
[377862013,1754583040113,-308.74180372,0.00021917,2]
[377862014,1754583040123,-460.0,0.00021917,2]
[377862015,1754583040135,-460.0,0.00021917,2]
[377862016,1754583040149,-1526.37,0.00021917,2]
[377862017,1754583040162,-460.0,0.00021917,2]
[377862018,1754583040174,-460.0,0.00021917,2]
[377862019,1754583040185,-671.81,0.00021917,2]
[377862020,1754583040194,-537.48006223,0.00021917,2]
[377862021,1754583040207,-460.0,0.00021917,2]
[377862022,1754583040218,-460.0,0.00021917,2]
[377862023,1754583040231,-460.0,0.00021917,2]
[377862024,1754583040247,-952.31,0.00021917,2]
[377862025,1754583040257,-460.0,0.00021917,2]
[377862026,1754583040267,-508.96,0.00021917,2]
[377862027,1754583040276,-321.5025811,0.00021917,2]
[377862028,1754583040286,-460.0,0.00021917,2]
[377862029,1754583040296,-460.0,0.00021917,2]
[377862030,1754583040306,-460.0,0.00021917,2]
[377862031,1754583040316,-461.44412378,0.00021917,2]
[377862032,1754583040326,-460.0,0.00021917,2]
[377862033,1754583040336,-470.59087833,0.00021917,2]
[377862034,1754583040346,-460.0,0.00021917,2]
[377862035,1754583040357,-460.0,0.00021917,2]
[377862036,1754583040367,-460.0,0.00021917,2]
[377862037,1754583040378,-460.0,0.00021917,2]
[377862038,1754583040388,-460.0,0.00021917,2]
[377862039,1754583040398,-460.0,0.00021917,2]
[377862040,1754583040408,-460.0,0.00021917,2]
[377862041,1754583040417,-460.0,0.00021917,2]
[377862042,1754583040427,-460.0,0.00021917,2]
[377862043,1754583040436,-460.0,0.00021917,2]
[377862044,1754583040446,-156.50314161,0.00021917,2]
[377862045,1754583040456,-460.0,0.00021917,2]
[377862046,1754583040466,-460.0,0.00021917,2]
[377862047,1754583040476,-1331.89,0.00021917,2]
[377862048,1754583040486,-460.0,0.00021917,2]
[377862049,1754583040497,-460.0,0.00021917,2]
[377862050,1754583040507,-460.0,0.00021917,2]
[377862051,1754583040518,-460.0,0.00021917,2]
[377862052,1754583040528,-460.0,0.00021917,2]
[377862053,1754583040537,-460.0,0.00021917,2]
[377862054,1754583040548,-460.0,0.00021917,2]
[377862055,1754583040559,-460.0,0.00021917,2]
[377862056,1754583040569,-460.0,0.00021917,2]
[377862057,1754583040579,-460.0,0.00021917,2]
[377862058,1754583040591,-460.0,0.00021917,2]
[377862059,1754583040603,-462.55896585,0.00021917,2]
[377862060,1754583040612,-460.0,0.00021917,2]
[377862061,1754583040623,-460.0,0.00021917,2]
[377862062,1754583040632,-460.0,0.00021917,2]
[377862063,1754583040642,-460.0,0.00021917,2]
[377862064,1754583040651,-479.19903283,0.00021917,2]
[377862065,1754583040661,-811.08,0.00021917,2]
[377862066,1754583040672,-4069.15,0.00021917,2]
[377862067,1754583040681,-460.0,0.00021917,2]
[377862068,1754583040691,-460.0,0.00021917,2]
[377862069,1754583040701,-559.16,0.00021917,2]
[377862070,1754583040711,-960.73,0.00021917,2]
[377862071,1754583040721,-460.0,0.00021917,2]
[377862072,1754583040732,-460.0,0.00021917,2]
[377862073,1754583040742,-460.0,0.00021917,2]
[377862074,1754583040751,-883.19,0.00021917,2]
[377862075,1754583040761,-460.0,0.00021917,2]
[377862076,1754583040771,-460.0,0.00021917,2]
[377862077,1754583040781,-460.0,0.00021917,2]
[377862078,1754583040791,-460.0,0.00021917,2]
[377862079,1754583040800,-1485.56,0.00021917,2]
[377862080,1754583040810,-475.88,0.00021917,2]
[377862081,1754583040820,-460.0,0.00021917,2]
[377862082,1754583040829,-1326.68,0.00021917,2]
[377862083,1754583040839,-460.0,0.00021917,2]
[377862084,1754583040848,-627.37,0.00021917,2]
[377862085,1754583040857,-460.0,0.00021917,2]
[377862086,1754583040867,-464.81637693,0.00021917,2]
[377862087,1754583040877,-460.0,0.00021917,2]
[377862088,1754583040887,-988.07,0.00021917,2]
[377862089,1754583040897,-460.0,0.00021917,2]
[377862090,1754583040907,-1605.27,0.00021917,2]
[377862091,1754583040916,-460.0,0.00021917,2]
[377862092,1754583040927,-460.0,0.00021917,2]
[377862093,1754583040936,-526.44,0.00021917,2]
[377862094,1754583040946,-460.0,0.00021917,2]
[377862095,1754583040956,-463.9711552,0.00021917,2]
[377862096,1754583040966,-460.0,0.00021917,2]
[377862097,1754583040975,-503.73,0.00021917,2]
[377862098,1754583040986,-460.0,0.00021917,2]
[377862099,1754583040996,-460.0,0.00021917,2]
[377862100,1754583041006,-460.0,0.00021917,2]
[377862101,1754583041016,-460.0,0.00021917,2]
[377862102,1754583041027,-460.0,0.00021917,2]
[377862103,1754583041036,-460.0,0.00021917,2]
[377862104,1754583041045,-460.97,0.00021917,2]
[377862105,1754583041055,-472.60435093,0.00021917,2]
[377862106,1754583041064,-1855.72,0.00021917,2]
[377862107,1754583041074,-460.0,0.00021917,2]
[377862108,1754583041083,-460.0,0.00021917,2]
[377862109,1754583041094,-454.67659112,0.00021917,2]
[377862110,1754583041104,-460.0,0.00021917,2]
[377862111,1754583041114,-1000.0,0.00021917,2]
[377862112,1754583041126,-460.0,0.00021917,2]
[377862113,1754583041137,-590.7030335,0.00021917,2]
[377862114,1754583041151,-2328.09,0.00021917,2]
[377862115,1754583041160,-684.5,0.00021917,2]
[377862116,1754583041171,-460.0,0.00021917,2]
[377862117,1754583041181,-460.0,0.00021917,2]
[377862118,1754583041191,-460.0,0.00021917,2]
[377862119,1754583041201,-384.38442791,0.00021917,2]
[377862120,1754583041210,-460.0,0.00021917,2]
[377862121,1754583041221,-460.0,0.00021917,2]
[377862122,1754583041233,-460.0,0.00021917,2]
[377862123,1754583041242,-460.0,0.00021917,2]
[377862124,1754583041253,-460.0,0.00021917,2]
[377862125,1754583041263,-460.0,0.00021917,2]
[377862126,1754583041273,-460.0,0.00021917,2]
[377862127,1754583041282,-460.0,0.00021917,2]
[377862128,1754583041292,-460.0,0.00021917,2]
[377862129,1754583041302,-501.07347936,0.00021917,2]
[377862130,1754583041312,-460.0,0.00021917,2]
[377862131,1754583041322,-701.53,0.00021917,2]
[377862132,1754583041331,-460.0,0.00021917,2]
[377862133,1754583041341,-460.0,0.00021917,2]
[377862134,1754583041351,-460.0,0.00021917,2]
[377862135,1754583041360,-460.0,0.00021917,2]
[377862136,1754583041370,-467.56479318,0.00021917,2]
[377862137,1754583041380,-460.0,0.00021917,2]
[377862138,1754583041389,-2325.42,0.00021917,2]
[377862139,1754583041399,-709.39,0.00021917,2]
[377862140,1754583041410,-460.0,0.00021917,2]
[377862141,1754583041419,-460.0,0.00021917,2]
[377862142,1754583041429,-518.92,0.00021917,2]
[377862143,1754583041438,-460.0,0.00021917,2]
[377862144,1754583041448,-461.58101137,0.00021917,2]
[377862145,1754583041458,-460.0,0.00021917,2]
[377862146,1754583041468,-464.91972088,0.00021917,2]
[377862147,1754583041654,-473.244843,0.00021917,2]
[377862148,1754583041664,-460.0,0.00021917,2]
[377862149,1754583041675,-460.0,0.00021917,2]
[377862150,1754583041684,-460.0,0.00021917,2]
[377862151,1754583041694,-532.02,0.00021917,2]
[377862152,1754583041703,-460.0,0.00021917,2]
[377862153,1754583041713,-460.0,0.00021917,2]
[377862154,1754583041723,-1984.43,0.00021917,2]
[377862155,1754583041732,-117.98961653,0.00021917,2]
[377862199,1754583047343,-342.01038347,0.00021917,2]
[377862200,1754583047352,-460.0,0.00021917,2]
[377862201,1754583047362,-460.0,0.00021917,2]
[377862202,1754583047371,-277.43046646,0.00021917,2]
[377862203,1754583115986,176.58651026,0.00021259,2]
[377862204,1754583162241,168.275115,0.00021093,2]
[377862208,1754583298984,960.0,0.00021481,7]
[377862209,1754583302738,3029.25778359,0.00020995,2]
[377862210,1754583302762,15000.0,0.00020995,2]
[377862211,1754583302787,6870.74221641,0.00020995,2]
[377862212,1754583308923,196.15015694,0.00019817,2]
[377862215,1754583395937,453.47036458,0.00021422,2]
[377862216,1754583398409,1813.88145832,0.00021422,2]
[377862217,1754583400587,4081.23328121,0.00021422,2]
[377862218,1754583402829,1584.52252254,0.00021422,2]
[377862219,1754583402854,5671.00331072,0.00021422,2]
[377862220,1754583404975,364.17964445,0.00021422,2]
[377862221,1754583407120,1456.7185778,0.00021422,2]
[377862222,1754583409287,3277.61680004,0.00021422,2]
[377862223,1754583411724,4230.48166699,0.00021422,2]
[377862224,1754583411938,1590.56576988,0.00021422,2]
[377862226,1754583454349,326.88791206,0.00021422,2]
[377862227,1754583456740,1306.24409659,0.00021422,2]
[377862228,1754583458860,584.45928693,0.00021422,2]
[377862229,1754583461775,2337.83714772,0.00021422,2]
[377862230,1754583464070,5254.87344879,0.00021422,2]
[377862232,1754583610271,150.0,0.00019817,2]
[377862237,1754583778102,166.379181,0.00020794,2]
[377862238,1754583802104,3282.75315703,0.0002113,2]
[377862239,1754583802126,3684.81046044,0.0002113,2]
[377862240,1754583804705,2885.5218512,0.00020505,2]
[377862241,1754583807147,2776.49215878,0.00021349,2]
[377862245,1754583912740,150.0,0.00019817,2]
[377862251,1754584026461,2000.0,0.00032109,30]
[377862264,1754584082274,650.06552,0.00013699,2]
[377862265,1754584082505,650.06552,0.00020187,2]
[377862269,1754584142539,382.4860517,0.0002113,2]
[377862270,1754584144706,1529.9442068,0.0002113,2]
[377862271,1754584146666,2290.61423108,0.0002113,2]
[377862272,1754584146688,1148.31785975,0.0002113,2]
[377862273,1754584148357,417.11525436,0.0002113,2]
[377862274,1754584150434,1668.46101745,0.0002113,2]
[377862275,1754584152376,3754.03728927,0.0002113,2]
[377862276,1754584154507,6667.17022575,0.0002113,2]
[377862277,1754584191736,584.74161421,0.0002113,2]
[377862278,1754584193614,760.15673921,0.0002113,2]
[377862279,1754584193637,1578.80971764,0.0002113,2]
[377862280,1754584195749,5257.41185338,0.0002113,2]
[377862281,1754584198347,5000.0,0.00028,30]
[377862283,1754584200239,168.275116,0.00020793,2]
[377862284,1754584202994,5000.0,0.00021481,2]
[377862285,1754584218325,2995.50331298,0.00021481,2]
[377862286,1754584218349,2004.49668702,0.00021481,2]
[377862307,1754584232839,-498.69702009,0.00021716,2]
[377862310,1754584232850,-584.96736675,0.00021716,2]
[377862312,1754584232859,-153.3944394,0.00021717,2]
[377862314,1754584232869,-153.3944394,0.00021745,2]
[377862316,1754584232878,-1200.0,0.00021771,2]
[377862317,1754584232887,-1200.0,0.00021772,2]
[377862319,1754584232896,-300.0,0.00021772,2]
[377862321,1754584232905,-27.84482111,0.00021773,2]
[377862339,1754584233873,5000.0,0.00021481,2]
[377862355,1754584238060,-125.54961829,0.00021773,2]
[377862357,1754584238070,-15201.96375798,0.00021773,2]
[377862359,1754584238080,-3496.43234493,0.00021773,2]
[377862361,1754584238090,-1492.68,0.00021807,3]
[377862363,1754584238099,-746.34,0.00021807,3]
[377862365,1754584238108,-373.17,0.00021807,3]
[377862367,1754584238118,-186.58,0.00021807,3]
[377862369,1754584238128,-559.77,0.00021807,3]
[377862371,1754584238137,-2290.39108763,0.00021807,2]
[377862374,1754584238157,-15382.09555092,0.00021807,2]
[377862375,1754584238166,-500.0,0.00021816,2]
[377862376,1754584238176,-500.0,0.00021816,2]
[377862377,1754584238186,-500.0,0.00021816,2]
[377862378,1754584238196,-500.0,0.00021816,2]
[377862379,1754584238206,-500.0,0.00021816,2]
[377862380,1754584238215,-500.0,0.00021816,2]
[377862381,1754584238225,-500.0,0.00021816,2]
[377862383,1754584238235,-500.0,0.00021816,2]
[377862384,1754584238244,-500.0,0.00021816,2]
[377862385,1754584238254,-500.0,0.00021816,2]
[377862386,1754584238263,-500.0,0.00021816,2]
[377862387,1754584238273,-500.0,0.00021816,2]
[377862388,1754584238283,-500.0,0.00021816,2]
[377862389,1754584238292,-500.0,0.00021816,2]
[377862390,1754584238303,-500.0,0.00021816,2]
[377862391,1754584238313,-500.0,0.00021816,2]
[377862392,1754584238323,-500.0,0.00021816,2]
[377862393,1754584238333,-500.0,0.00021816,2]
[377862394,1754584238343,-323.47860023,0.00021816,2]
[377862395,1754584238353,-500.0,0.00021816,2]
[377862396,1754584238363,-500.0,0.00021816,2]
[377862397,1754584238374,-500.0,0.00021816,2]
[377862398,1754584238383,-500.0,0.00021816,2]
[377862399,1754584238392,-13207.56726272,0.00021817,2]
[377862400,1754584238402,-370000.0,0.00021817,2]
[377862401,1754584238411,-500.0,0.00021873,2]
[377862402,1754584238421,-500.0,0.00021873,2]
[377862403,1754584238431,-259.14114881,0.00021873,2]
[377862404,1754584238441,-500.0,0.00021873,2]
[377862405,1754584238452,-500.0,0.00021873,2]
[377862406,1754584238464,-500.0,0.00021873,2]
[377862407,1754584238473,-500.0,0.00021873,2]
[377862408,1754584238483,-503.28221012,0.00021873,2]
[377862409,1754584238494,-332.46060549,0.00021873,2]
[377862410,1754584238505,-500.0,0.00021873,2]
[377862411,1754584238515,-500.0,0.00021873,2]
[377862412,1754584238528,-502.63167957,0.00021873,2]
[377862413,1754584238548,-500.0,0.00021873,2]
[377862414,1754584238560,-500.0,0.00021873,2]
[377862415,1754584238571,-500.0,0.00021873,2]
[377862416,1754584238582,-500.0,0.00021873,2]
[377862417,1754584238596,-500.0,0.00021873,2]
[377862418,1754584238607,-500.0,0.00021873,2]
[377862419,1754584238616,-500.0,0.00021873,2]
[377862420,1754584238626,-422.92991732,0.00021873,2]
[377862421,1754584238636,-500.0,0.00021873,2]
[377862422,1754584238646,-151.0,0.00021917,2]
[377862423,1754584238655,-458.44593449,0.00021917,2]
[377862424,1754584238666,-460.0,0.00021917,2]
[377862425,1754584238676,-460.0,0.00021917,2]
[377862426,1754584238687,-460.0,0.00021917,2]
[377862427,1754584238696,-460.0,0.00021917,2]
[377862428,1754584238706,-460.0,0.00021917,2]
[377862429,1754584238715,-460.0,0.00021917,2]
[377862430,1754584238725,-460.0,0.00021917,2]
[377862431,1754584238734,-460.0,0.00021917,2]